[Event "41st Jacques-Lemans-Open 2022"]
[Site "St. Veit/Glan"]
[Date "2022.07.14"]
[Round "7.12"]
[White "Moeller, Dustin"]
[Black "Hresc, Vladimir"]
[Result "0-1"]
[ECO "E15"]
[WhiteElo "2237"]
[BlackElo "2308"]
[Annotator "ChessBase"]
[PlyCount "84"]
[EventDate "2022.07.09"]
[EventType "swiss"]
[EventCountry "AUT"]
[SourceTitle "playchess.com"]
[Source "ChessBase"]
[SourceQuality "1"]
[TimeControl "40/5400+30:1800+30"]

1. d4 {[%emt 0:00:04]} Nf6 {[%emt 0:00:12]} 2. c4 {[%emt 0:00:07]} e6 {[%emt 0:00:17]} 3. Nf3 {[%emt 0:00:09]} b6 {[%emt 0:00:07]} 4. g3 {[%emt 0:00:06]} Bb7 {[%emt 0:00:02]} 5. Bg2 {[%emt 0:00:09]} g6 {[%emt 0:03:49]} 6. O-O {[%emt 0:00:08]} Bg7 {[%emt 0:00:06]} 7. Nc3 {[%emt 0:00:15]} Ne4 {[%emt 0:01:26]} 8. Bd2 {[%emt 0:11:43]} Nxd2 {[%emt 0:02:29]} 9. Qxd2 {[%emt 0:00:07]} O-O {[%emt 0:00:34]} 10. d5 {[%emt 0:01:32]} d6 {[%emt 0:08:31]} 11. Nd4 {[%emt 0:05:43]} Bxd4 {[%emt 0:05:32]} 12. Qxd4 {[%emt 0:00:05]} e5 {[%emt 0:00:09]} 13. Qd2 {[%emt 0:00:41]} Nd7 {[%emt 0:05:22]} 14. b4 {[%emt 0:03:26]} f5 {[%emt 0:04:10]} 15. Rac1 {[%emt 0:04:48]} a5 {[%emt 0:00:36]} 16. a3 {[%emt 0:00:34]} axb4 {[%emt 0:00:46]} 17. axb4 {[%emt 0:00:02]} Qe7 {[%emt 0:00:50]} 18. Ra1 {[%emt 0:07:02]} Nf6 {[%emt 0:03:02]} 19. Qb2 {[%emt 0:04:54]} e4 {[%emt 0:02:18]} 20. Rfc1 {[%emt 0:15:23]} Qe5 {[%emt 0:03:14]} 21. Nd1 {[%emt 0:02:30]} Qxb2 {[%emt 0:01:22]} 22. Nxb2 {[%emt 0:00:07]} b5 {[%emt 0:00:11]} 23. cxb5 {[%emt 0:09:09]} Nxd5 {[%emt 0:03:04]} 24. e3 {[%emt 0:09:14]} Rxa1 {[%emt 0:03:53]} 25. Rxa1 {[%emt 0:00:02]} Nxb4 {[%emt 0:00:15]} 26. Ra7 {[%emt 0:01:57]} Rb8 {[%emt 0:00:17]} 27. Bf1 {[%emt 0:00:57]} Kf8 {[%emt 0:18:12]} 28. Nc4 {[%emt 0:00:28]} Nd3 {[%emt 0:01:05]} 29. b6 {[%emt 0:01:51]} cxb6 {[%emt 0:01:34]} 30. Nxd6 {[%emt 0:04:22]} Nc5 {[%emt 0:04:11]} 31. Bc4 {[%emt 0:00:24]} Ke7 {[%emt 0:00:34]} 32. Nxb7 {[%emt 0:11:01]} Rxb7 {[%emt 0:01:05]} 33. Rxb7+ {[%emt 0:01:04]} Nxb7 {[%emt 0:00:03]} 34. h4 {[%emt 0:00:14]} h6 {[%emt 0:00:17]} 35. f4 {[%emt 0:03:44]} exf3 {[%emt 0:00:44]} 36. Kf2 {[%emt 0:00:17]} Nd6 {[%emt 0:01:05]} 37. Bd5 {[%emt 0:00:46]} Kf6 {[%emt 0:00:15]} 38. Kxf3 {[%emt 0:02:33]} Ke5 {[%emt 0:00:11]} 39. Bb3 {[%emt 0:00:18]} b5 {[%emt 0:01:27]} 40. Bc2 {[%emt 0:01:16]} b4 {[%emt 0:00:54]} 41. g4 {[%emt 0:01:04]} fxg4+ {[%emt 0:02:51]} 42. Kxg4 {[%emt 0:00:07]} Nf5 {[%emt 0:00:14]} 0-1

[Event "41st Jacques-Lemans-Open 2022"]
[Site "St. Veit/Glan"]
[Date "2022.07.14"]
[Round "7.13"]
[White "Bauer, Thomas"]
[Black "Huber, Benedikt"]
[Result "0-1"]
[ECO "C50"]
[WhiteElo "2228"]
[BlackElo "2289"]
[Annotator "ChessBase"]
[PlyCount "92"]
[EventDate "2022.07.09"]
[EventType "swiss"]
[EventCountry "AUT"]
[SourceTitle "playchess.com"]
[Source "ChessBase"]
[SourceQuality "1"]
[TimeControl "40/5400+30:1800+30"]

1. e4 {[%emt 0:00:02]} e5 {[%emt 0:00:10]} 2. Nf3 {[%emt 0:00:06]} Nc6 3. Bc4 {[%emt 0:00:00]} Nf6 {[%emt 0:00:16]} 4. d3 {[%emt 0:00:00]} Bc5 {[%emt 0:00:00]} 5. c3 {[%emt 0:00:00]} a6 6. a4 d6 {[%emt 0:00:29]} 7. O-O {[%emt 0:00:28]} Ba7 {[%emt 0:00:13]} 8. Re1 {[%emt 0:00:03]} O-O {[%emt 0:00:08]} 9. h3 {[%emt 0:00:04]} h6 {[%emt 0:00:11]} 10. Nbd2 {[%emt 0:00:11]} Re8 {[%emt 0:00:33]} 11. b4 {[%emt 0:00:51]} Be6 {[%emt 0:01:43]} 12. Bxe6 {[%emt 0:02:54]} Rxe6 {[%emt 0:00:13]} 13. Bb2 {[%emt 0:00:04]} Qd7 {[%emt 0:07:04]} 14. Qb3 {[%emt 0:10:17]} Nh5 {[%emt 0:14:43]} 15. d4 {[%emt 0:08:54]} Nf4 {[%emt 0:05:54]} 16. Nf1 {[%emt 0:11:41]} Nd3 {[%emt 0:27:22]} 17. Re3 {[%emt 0:04:07]} Nxb2 {[%emt 0:00:07]} 18. Qxb2 {[%emt 0:00:59]} Ne7 {[%emt 0:09:22]} 19. Ng3 {[%emt 0:15:44]} Re8 {[%emt 0:00:53]} 20. Qb3 {[%emt 0:11:22]} exd4 {[%emt 0:05:21]} 21. cxd4 {[%emt 0:00:56]} d5 {[%emt 0:00:09]} 22. e5 {[%emt 0:02:41]} Rb6 {[%emt 0:00:25]} 23. Rc1 {[%emt 0:04:23]} Nc6 {[%emt 0:02:27]} 24. b5 {[%emt 0:08:54]} axb5 {[%emt 0:00:12]} 25. axb5 {[%emt 0:04:50]} Na5 {[%emt 0:00:28]} 26. Qa2 {[%emt 0:02:26]} Rxb5 {[%emt 0:00:52]} 27. Ne2 {[%emt 0:01:40]} Bb6 {[%emt 0:07:53]} 28. Nc3 {[%emt 0:02:45]} Rb3 {[%emt 0:00:07]} 29. Na4 {[%emt 0:02:08]} Rxe3 {[%emt 0:01:42]} 30. Nxb6 {[%emt 0:00:02]} cxb6 {[%emt 0:00:07]} 31. fxe3 {[%emt 0:00:03]} Nc4 {[%emt 0:00:37]} 32. Qb1 {[%emt 0:02:13]} b5 {[%emt 0:05:42]} 33. Qd3 {[%emt 0:00:13]} Ra8 {[%emt 0:00:28]} 34. Nh4 {[%emt 0:03:25]} Ra3 {[%emt 0:01:39]} 35. Qf1 {[%emt 0:01:50]} b4 {[%emt 0:02:18]} 36. e4 {[%emt 0:00:55]} b3 {[%emt 0:03:22]} 37. exd5 {[%emt 0:01:03]} b2 {[%emt 0:00:15]} 38. Qxc4 {[%emt 0:00:23]} Ra1 {[%emt 0:00:12]} 39. Rf1 {[%emt 0:00:36]} Rxf1+ {[%emt 0:05:01]} 40. Qxf1 {[%emt 0:00:01]} Qc8 {[%emt 0:00:22]} 41. Qb5 {[%emt 0:21:06]} Qc1+ {[%emt 0:00:00]} 42. Kh2 {[%emt 0:00:02]} b1=Q {[%emt 0:00:00]} 43. Qe8+ {[%emt 0:00:11]} Kh7 {[%emt 0:00:01]} 44. Qxf7 {[%emt 0:00:11]} Qg1+ {[%emt 0:01:22]} 45. Kg3 {[%emt 0:01:34]} Qbe1+ {[%emt 0:00:07]} 46. Kg4 {[%emt 0:00:29]} Qxd4+ {[%emt 0:00:08]} 0-1

[Event "41st Jacques-Lemans-Open 2022"]
[Site "St. Veit/Glan"]
[Date "2022.07.14"]
[Round "7.14"]
[White "Bauer, Sebastian"]
[Black "Buchegger, Fridolin"]
[Result "1/2-1/2"]
[ECO "C85"]
[WhiteElo "2380"]
[BlackElo "1961"]
[Annotator "ChessBase"]
[PlyCount "73"]
[EventDate "2022.07.09"]
[EventType "swiss"]
[EventCountry "AUT"]
[SourceTitle "playchess.com"]
[Source "ChessBase"]
[SourceQuality "1"]
[TimeControl "40/5400+30:1800+30"]

1. e4 {[%emt 0:00:06]} e5 {[%emt 0:00:58]} 2. Nf3 {[%emt 0:00:20]} Nc6 {[%emt 0:00:38]} 3. Bb5 {[%emt 0:00:11]} a6 {[%emt 0:01:12]} 4. Ba4 {[%emt 0:00:12]} Nf6 {[%emt 0:00:04]} 5. O-O {[%emt 0:00:08]} Be7 {[%emt 0:00:05]} 6. Bxc6 {[%emt 0:00:07]} dxc6 {[%emt 0:00:08]} 7. d3 {[%emt 0:00:04]} Bd6 {[%emt 0:05:43]} 8. b3 {[%emt 0:00:57]} Qe7 {[%emt 0:09:20]} 9. Bb2 {[%emt 0:00:44]} O-O {[%emt 0:00:21]} 10. Nbd2 {[%emt 0:01:59]} Nd7 {[%emt 0:01:08]} 11. Nc4 {[%emt 0:00:43]} Re8 {[%emt 0:02:44]} 12. d4 {[%emt 0:09:09]} exd4 {[%emt 0:07:48]} 13. Qxd4 {[%emt 0:01:30]} f6 {[%emt 0:00:08]} 14. Nxd6 cxd6 {[%emt 0:04:26]} 15. Rad1 {[%emt 0:18:40]} Nc5 {[%emt 0:02:21]} 16. Nd2 {[%emt 0:04:58]} Be6 {[%emt 0:04:00]} 17. Rfe1 {[%emt 0:06:44]} Rad8 {[%emt 0:02:01]} 18. h3 {[%emt 0:06:22]} Bf7 {[%emt 0:06:02]} 19. Nf1 {[%emt 0:06:46]} Qe5 {[%emt 0:04:08]} 20. f3 {[%emt 0:10:41]} Ne6 {[%emt 0:07:30]} 21. Qc3 {[%emt 0:00:48]} Nf4 {[%emt 0:00:50]} 22. Qxe5 {[%emt 0:00:37]} dxe5 {[%emt 0:00:22]} 23. Kf2 {[%emt 0:00:32]} Be6 {[%emt 0:02:29]} 24. h4 {[%emt 0:01:18]} Kf7 {[%emt 0:05:31]} 25. Ne3 {[%emt 0:02:27]} b6 {[%emt 0:10:25]} 26. g3 {[%emt 0:02:04]} Ng6 {[%emt 0:00:10]} 27. c4 {[%emt 0:06:52]} Nf8 {[%emt 0:02:38]} 28. f4 {[%emt 0:01:57]} exf4 {[%emt 0:01:15]} 29. gxf4 {[%emt 0:00:01]} Bc8 {[%emt 0:01:50]} 30. Kf3 {[%emt 0:03:31]} h5 {[%emt 0:01:28]} 31. Bd4 {[%emt 0:05:21]} Bg4+ {[%emt 0:03:00]} 32. Nxg4 {[%emt 0:00:10]} hxg4+ {[%emt 0:00:04]} 33. Ke3 {[%emt 0:01:27]} c5 {[%emt 0:00:19]} 34. Bc3 {[%emt 0:00:05]} Ng6 {[%emt 0:02:01]} 35. Rxd8 {[%emt 0:02:38]} Rxd8 {[%emt 0:00:46]} 36. Rh1 {[%emt 0:03:05]} g3 {[%emt 0:03:33]} 37. f5 1/2-1/2

[Event "41st Jacques-Lemans-Open 2022"]
[Site "St. Veit/Glan"]
[Date "2022.07.14"]
[Round "7.15"]
[White "Kruckenhauser, Arthur"]
[Black "Ernst, Robert"]
[Result "1/2-1/2"]
[ECO "B40"]
[WhiteElo "2303"]
[BlackElo "2001"]
[Annotator "ChessBase"]
[PlyCount "55"]
[EventDate "2022.07.09"]
[EventType "swiss"]
[EventCountry "AUT"]
[SourceTitle "playchess.com"]
[Source "ChessBase"]
[SourceQuality "1"]
[TimeControl "40/5400+30:1800+30"]

1. e4 {[%emt 0:00:02]} c5 {[%emt 0:00:07]} 2. Nf3 {[%emt 0:00:05]} e6 {[%emt 0:00:10]} 3. b3 {[%emt 0:00:08]} Nc6 {[%emt 0:00:43]} 4. Bb2 {[%emt 0:00:15]} d6 {[%emt 0:02:18]} 5. d4 {[%emt 0:00:35]} cxd4 {[%emt 0:00:22]} 6. Nxd4 {[%emt 0:00:02]} Nf6 {[%emt 0:00:39]} 7. Nc3 {[%emt 0:09:21]} Be7 {[%emt 0:05:28]} 8. Qd2 {[%emt 0:05:15]} a6 {[%emt 0:10:14]} 9. O-O-O {[%emt 0:00:26]} Qc7 {[%emt 0:01:19]} 10. f3 {[%emt 0:06:46]} b5 {[%emt 0:04:20]} 11. g4 {[%emt 0:00:44]} Bb7 {[%emt 0:02:09]} 12. Kb1 {[%emt 0:02:57]} Rc8 {[%emt 0:04:26]} 13. h4 {[%emt 0:06:33]} Nxd4 {[%emt 0:13:25]} 14. Qxd4 {[%emt 0:00:07]} d5 {[%emt 0:03:54]} 15. g5 {[%emt 0:19:43]} dxe4 {[%emt 0:05:48]} 16. gxf6 {[%emt 0:06:23]} Bxf6 {[%emt 0:00:12]} 17. Qd2 {[%emt 0:00:30]} e3 {[%emt 0:17:28]} 18. Qxe3 {[%emt 0:02:10]} Bxc3 {[%emt 0:00:12]} 19. Bxc3 Qxc3 {[%emt 0:00:02]} 20. Bd3 {[%emt 0:00:59]} Qc5 {[%emt 0:01:52]} 21. Qf4 {[%emt 0:05:25]} O-O {[%emt 0:06:22]} 22. Rdg1 {[%emt 0:02:25]} Rfd8 {[%emt 0:01:11]} 23. Rg5 {[%emt 0:11:25]} Rd5 {[%emt 0:02:55]} 24. Rhg1 {[%emt 0:01:14]} Rxg5 {[%emt 0:00:09]} 25. Rxg5 {[%emt 0:00:11]} Qc3 {[%emt 0:00:23]} 26. Qe3 {[%emt 0:02:52]} h6 {[%emt 0:04:51]} 27. Rg4 {[%emt 0:03:52]} Kf8 {[%emt 0:00:47]} 28. Rf4 {[%emt 0:04:09]} 1/2-1/2

[Event "41st Jacques-Lemans-Open 2022"]
[Site "St. Veit/Glan"]
[Date "2022.07.14"]
[Round "7.16"]
[White "Dotzer, Lukas"]
[Black "Katter, Katharina"]
[Result "1-0"]
[ECO "B23"]
[WhiteElo "2269"]
[BlackElo "2000"]
[Annotator "ChessBase"]
[PlyCount "59"]
[EventDate "2022.07.09"]
[EventType "swiss"]
[EventCountry "AUT"]
[SourceTitle "playchess.com"]
[Source "ChessBase"]
[SourceQuality "1"]
[TimeControl "40/5400+30:1800+30"]

1. e4 {[%emt 0:00:30]} c5 {[%emt 0:00:30]} 2. Nc3 {[%emt 0:00:30]} a6 {[%emt 0:00:30]} 3. Nge2 {[%emt 0:00:30]} d6 {[%emt 0:00:00]} 4. g3 {[%emt 0:00:00]} b5 {[%emt 0:08:11]} 5. Bg2 {[%emt 0:00:12]} Bb7 {[%emt 0:00:08]} 6. O-O {[%emt 0:02:59]} Nf6 {[%emt 0:01:51]} 7. d4 {[%emt 0:02:12]} Nbd7 {[%emt 0:09:42]} 8. d5 {[%emt 0:02:43]} g6 {[%emt 0:01:05]} 9. a4 {[%emt 0:04:10]} b4 {[%emt 0:02:11]} 10. Nb1 {[%emt 0:00:06]} Bg7 {[%emt 0:04:52]} 11. c4 {[%emt 0:05:25]} O-O {[%emt 0:04:22]} 12. Nd2 {[%emt 0:03:40]} e5 {[%emt 0:06:13]} 13. dxe6 {[%emt 0:02:11]} fxe6 {[%emt 0:00:14]} 14. e5 {[%emt 0:00:10]} Bxg2 {[%emt 0:03:29]} 15. exf6 {[%emt 0:00:06]} Bxf1 {[%emt 0:01:01]} 16. fxg7 {[%emt 0:00:06]} Kxg7 {[%emt 0:02:49]} 17. Nxf1 {[%emt 0:04:44]} Ne5 {[%emt 0:08:52]} 18. Ne3 {[%emt 0:05:37]} Nf3+ {[%emt 0:06:37]} 19. Kh1 {[%emt 0:05:33]} Qd7 {[%emt 0:05:51]} 20. Qf1 {[%emt 0:05:34]} d5 {[%emt 0:06:28]} 21. b3 {[%emt 0:10:08]} d4 {[%emt 0:09:01]} 22. Ng4 {[%emt 0:03:08]} g5 {[%emt 0:03:58]} 23. Ng1 {[%emt 0:04:56]} Qf7 {[%emt 0:04:53]} 24. Qe2 {[%emt 0:13:57]} Qf5 {[%emt 0:02:33]} 25. Kg2 {[%emt 0:05:11]} h5 {[%emt 0:05:59]} 26. Nxf3 {[%emt 0:02:17]} hxg4 {[%emt 0:01:17]} 27. Nxg5 {[%emt 0:02:39]} d3 {[%emt 0:00:24]} 28. Bb2+ {[%emt 0:01:32]} Kg6 {[%emt 0:00:52]} 29. Qxe6+ {[%emt 0:00:11]} Kxg5 {[%emt 0:00:31]} 30. Bc1+ {[%emt 0:00:05]} 1-0

[Event "41st Jacques-Lemans-Open 2022"]
[Site "St. Veit/Glan"]
[Date "2022.07.14"]
[Round "7.17"]
[White "Hng, Mei-En Emmanuelle"]
[Black "Caruso, Augusto"]
[Result "0-1"]
[ECO "B21"]
[WhiteElo "1997"]
[BlackElo "2132"]
[Annotator "ChessBase"]
[PlyCount "70"]
[EventDate "2022.07.09"]
[EventType "swiss"]
[EventCountry "AUT"]
[SourceTitle "playchess.com"]
[Source "ChessBase"]
[SourceQuality "1"]
[TimeControl "40/5400+30:1800+30"]

1. e4 {[%emt 0:00:08]} c5 {[%emt 0:01:11]} 2. d4 {[%emt 0:00:41]} cxd4 {[%emt 0:00:35]} 3. c3 {[%emt 0:00:12]} Nf6 {[%emt 0:02:03]} 4. e5 {[%emt 0:00:13]} Nd5 {[%emt 0:00:06]} 5. Qxd4 {[%emt 0:00:11]} e6 {[%emt 0:01:36]} 6. Bd3 {[%emt 0:00:16]} Nc6 {[%emt 0:01:15]} 7. Qe4 {[%emt 0:00:17]} f5 {[%emt 0:04:28]} 8. exf6 {[%emt 0:02:17]} Nxf6 {[%emt 0:01:00]} 9. Qh4 {[%emt 0:00:14]} d5 {[%emt 0:01:16]} 10. Bg6+ {[%emt 0:01:05]} hxg6 {[%emt 0:03:17]} 11. Qxh8 {[%emt 0:00:09]} Ne5 {[%emt 0:00:19]} 12. Nh3 {[%emt 0:19:09]} Nd3+ {[%emt 0:01:07]} 13. Ke2 {[%emt 0:01:02]} Nxc1+ {[%emt 0:07:29]} 14. Rxc1 {[%emt 0:00:54]} Qb6 {[%emt 0:00:16]} 15. b3 {[%emt 0:11:10]} Qa6+ {[%emt 0:22:25]} 16. c4 {[%emt 0:10:40]} Qd6 {[%emt 0:02:57]} 17. Nd2 {[%emt 0:14:21]} e5 {[%emt 0:08:41]} 18. Kf1 {[%emt 0:10:33]} e4 {[%emt 0:08:20]} 19. Kg1 {[%emt 0:04:11]} Ng4 {[%emt 0:06:07]} 20. Nf1 {[%emt 0:05:30]} Qf6 {[%emt 0:00:33]} 21. cxd5 {[%emt 0:03:15]} Nh6 {[%emt 0:01:33]} 22. Re1 {[%emt 0:02:43]} Bf5 {[%emt 0:02:25]} 23. Ng3 {[%emt 0:02:14]} O-O-O {[%emt 0:00:31]} 24. Rac1+ {[%emt 0:00:13]} Kb8 {[%emt 0:00:13]} 25. Nxe4 {[%emt 0:03:00]} Qb2 {[%emt 0:15:21]} 26. Nc3 {[%emt 0:03:54]} Bxh3 {[%emt 0:03:00]} 27. gxh3 {[%emt 0:00:01]} Qd2 {[%emt 0:00:23]} 28. Ne4 {[%emt 0:00:52]} Qf4 {[%emt 0:01:40]} 29. Ng3 {[%emt 0:02:02]} Nf7 {[%emt 0:01:41]} 30. Qh7 {[%emt 0:03:01]} Ng5 {[%emt 0:01:46]} 31. Qh8 {[%emt 0:00:16]} Be7 {[%emt 0:01:12]} 32. Qxg7 {[%emt 0:00:47]} Bf6 {[%emt 0:00:21]} 33. Qxg6 {[%emt 0:00:49]} Nxh3+ {[%emt 0:00:21]} 34. Kg2 {[%emt 0:00:01]} Qxf2+ {[%emt 0:00:28]} 35. Kh1 {[%emt 0:01:02]} Qf3# {[%emt 0:00:12]} 0-1

[Event "41st Jacques-Lemans-Open 2022"]
[Site "St. Veit/Glan"]
[Date "2022.07.14"]
[Round "7.18"]
[White "Lerch, Johannes"]
[Black "Missethan, Michael"]
[Result "1-0"]
[ECO "B10"]
[WhiteElo "2222"]
[BlackElo "1991"]
[Annotator "ChessBase"]
[PlyCount "65"]
[EventDate "2022.07.09"]
[EventType "swiss"]
[EventCountry "AUT"]
[SourceTitle "playchess.com"]
[Source "ChessBase"]
[SourceQuality "1"]
[TimeControl "40/5400+30:1800+30"]

1. e4 {[%emt 0:00:02]} c6 {[%emt 0:00:03]} 2. Nf3 {[%emt 0:00:04]} d5 {[%emt 0:00:06]} 3. d3 {[%emt 0:00:04]} dxe4 {[%emt 0:00:05]} 4. dxe4 {[%emt 0:00:04]} Qxd1+ {[%emt 0:00:04]} 5. Kxd1 {[%emt 0:00:05]} Nf6 {[%emt 0:00:16]} 6. Nfd2 {[%emt 0:00:06]} h5 {[%emt 0:00:21]} 7. h4 {[%emt 0:00:08]} e5 {[%emt 0:06:25]} 8. f3 {[%emt 0:01:24]} Be6 {[%emt 0:02:02]} 9. Bc4 {[%emt 0:02:37]} Bxc4 {[%emt 0:04:26]} 10. Nxc4 {[%emt 0:00:06]} Nfd7 {[%emt 0:03:59]} 11. a4 {[%emt 0:00:54]} Na6 {[%emt 0:08:52]} 12. c3 {[%emt 0:08:58]} O-O-O {[%emt 0:04:34]} 13. Kc2 {[%emt 0:00:14]} Nc7 {[%emt 0:07:20]} 14. b4 {[%emt 0:03:54]} Kb8 {[%emt 0:04:50]} 15. Rd1 {[%emt 0:03:54]} f6 {[%emt 0:05:01]} 16. Be3 {[%emt 0:03:13]} Be7 {[%emt 0:02:25]} 17. Nba3 {[%emt 0:07:55]} c5 {[%emt 0:17:57]} 18. b5 {[%emt 0:01:46]} Nb6 {[%emt 0:05:15]} 19. Nxb6 {[%emt 0:01:17]} axb6 {[%emt 0:00:01]} 20. Nc4 {[%emt 0:00:59]} Ka7 {[%emt 0:01:16]} 21. Rdb1 {[%emt 0:08:52]} Ne6 {[%emt 0:01:48]} 22. a5 {[%emt 0:13:31]} bxa5 {[%emt 0:01:26]} 23. Rxa5+ {[%emt 0:00:57]} Kb8 {[%emt 0:00:06]} 24. b6 {[%emt 0:01:36]} Kc8 {[%emt 0:03:23]} 25. Ra7 {[%emt 0:00:59]} Kd7 {[%emt 0:09:13]} 26. Rxb7+ {[%emt 0:00:44]} Ke8 {[%emt 0:00:07]} 27. Ra7 {[%emt 0:04:15]} Rb8 {[%emt 0:00:59]} 28. Na5 {[%emt 0:01:18]} Nd8 {[%emt 0:00:36]} 29. b7 {[%emt 0:02:08]} Bd6 {[%emt 0:01:12]} 30. Ra8 {[%emt 0:00:47]} Kd7 {[%emt 0:02:51]} 31. Rd1 {[%emt 0:02:14]} Ne6 {[%emt 0:02:02]} 32. Rxb8 {[%emt 0:01:10]} Rxb8 {[%emt 0:00:02]} 33. Nc4 {[%emt 0:00:09]} 1-0

[Event "41st Jacques-Lemans-Open 2022"]
[Site "St. Veit/Glan"]
[Date "2022.07.14"]
[Round "7.19"]
[White "Enne, Harald"]
[Black "Ofner, Maximilian"]
[Result "0-1"]
[ECO "E00"]
[WhiteElo "1919"]
[BlackElo "2194"]
[Annotator "ChessBase"]
[PlyCount "62"]
[EventDate "2022.07.09"]
[EventType "swiss"]
[EventCountry "AUT"]
[SourceTitle "playchess.com"]
[Source "ChessBase"]
[SourceQuality "1"]
[TimeControl "40/5400+30:1800+30"]

1. d4 {[%emt 0:00:04]} Nf6 {[%emt 0:00:05]} 2. c4 {[%emt 0:00:07]} e6 {[%emt 0:00:07]} 3. Nc3 {[%emt 0:00:05]} c5 {[%emt 0:00:10]} 4. e3 {[%emt 0:01:32]} cxd4 {[%emt 0:00:20]} 5. exd4 {[%emt 0:00:03]} d5 {[%emt 0:00:11]} 6. Nf3 {[%emt 0:00:10]} Bb4 {[%emt 0:00:59]} 7. cxd5 {[%emt 0:06:52]} Nxd5 {[%emt 0:03:58]} 8. Bb5+ {[%emt 0:00:21]} Nc6 {[%emt 0:06:07]} 9. Bd2 {[%emt 0:01:33]} O-O {[%emt 0:01:50]} 10. O-O {[%emt 0:01:36]} Qb6 {[%emt 0:08:10]} 11. Nxd5 {[%emt 0:20:41]} exd5 {[%emt 0:00:30]} 12. Bxb4 {[%emt 0:04:05]} Nxb4 {[%emt 0:00:14]} 13. Qa4 {[%emt 0:01:29]} Nc6 {[%emt 0:07:42]} 14. Rac1 {[%emt 0:08:59]} Bd7 {[%emt 0:20:43]} 15. Rfe1 {[%emt 0:09:17]} a6 {[%emt 0:02:20]} 16. Bxc6 {[%emt 0:00:36]} Bxc6 {[%emt 0:00:20]} 17. Qc2 {[%emt 0:03:54]} Rae8 {[%emt 0:02:29]} 18. Rxe8 {[%emt 0:06:28]} Rxe8 {[%emt 0:00:50]} 19. h4 {[%emt 0:02:01]} h6 {[%emt 0:03:44]} 20. Ne5 {[%emt 0:08:25]} Qxd4 {[%emt 0:03:15]} 21. Nxc6 {[%emt 0:00:47]} bxc6 {[%emt 0:00:59]} 22. Qxc6 {[%emt 0:00:11]} Rd8 {[%emt 0:09:57]} 23. b3 {[%emt 0:06:06]} Qxh4 {[%emt 0:01:49]} 24. Qxa6 {[%emt 0:00:10]} Qe4 {[%emt 0:02:05]} 25. Rc8 {[%emt 0:02:57]} Rxc8 {[%emt 0:01:10]} 26. Qxc8+ {[%emt 0:00:02]} Kh7 {[%emt 0:00:06]} 27. a4 {[%emt 0:03:20]} d4 {[%emt 0:00:41]} 28. f3 {[%emt 0:06:13]} Qe1+ {[%emt 0:01:43]} 29. Kh2 {[%emt 0:00:06]} Qe5+ {[%emt 0:00:12]} 30. Kh3 {[%emt 0:03:25]} d3 {[%emt 0:00:26]} 31. Qc4 {[%emt 0:01:21]} Qe6+ {[%emt 0:00:50]} 0-1

[Event "41st Jacques-Lemans-Open 2022"]
[Site "St. Veit/Glan"]
[Date "2022.07.14"]
[Round "7.20"]
[White "Blasge, Tobias"]
[Black "Schein, Karl-Heinz"]
[Result "1-0"]
[ECO "D43"]
[WhiteElo "1826"]
[BlackElo "2167"]
[Annotator "ChessBase"]
[PlyCount "40"]
[EventDate "2022.07.09"]
[EventType "swiss"]
[EventCountry "AUT"]
[SourceTitle "playchess.com"]
[Source "ChessBase"]
[SourceQuality "1"]
[TimeControl "40/5400+30:1800+30"]

1. d4 {[%emt 0:00:03]} d5 {[%emt 0:00:24]} 2. c4 {[%emt 0:00:04]} c6 {[%emt 0:00:18]} 3. Nf3 {[%emt 0:00:06]} Nf6 {[%emt 0:00:23]} 4. Nc3 {[%emt 0:00:05]} e6 {[%emt 0:00:34]} 5. cxd5 {[%emt 0:00:08]} exd5 {[%emt 0:00:29]} 6. Bg5 {[%emt 0:00:05]} h6 {[%emt 0:00:33]} 7. Bh4 {[%emt 0:00:28]} Bf5 {[%emt 0:00:24]} 8. Qb3 {[%emt 0:03:32]} g5 {[%emt 0:01:22]} 9. Bg3 {[%emt 0:01:13]} Qb6 {[%emt 0:00:15]} 10. Qxb6 {[%emt 0:08:33]} axb6 {[%emt 0:00:08]} 11. Be5 {[%emt 0:02:53]} Nbd7 {[%emt 0:02:12]} 12. e3 {[%emt 0:02:05]} Bb4 {[%emt 0:05:06]} 13. a3 {[%emt 0:05:24]} Nxe5 {[%emt 0:04:33]} 14. Nxe5 {[%emt 0:03:08]} Nd7 {[%emt 0:11:51]} 15. Nxd7 {[%emt 0:25:15]} Kxd7 {[%emt 0:01:21]} 16. Kd2 {[%emt 0:03:09]} Bd6 {[%emt 0:01:15]} 17. Bd3 {[%emt 0:10:40]} Bxd3 {[%emt 0:01:16]} 18. Kxd3 {[%emt 0:00:05]} b5 {[%emt 0:03:44]} 19. f3 {[%emt 0:03:35]} f5 {[%emt 0:02:25]} 20. e4 {[%emt 0:03:02]} fxe4+ 1-0

[Event "41st Jacques-Lemans-Open 2022"]
[Site "St. Veit/Glan"]
[Date "2022.07.14"]
[Round "7.21"]
[White "Sucher, Johannes"]
[Black "Ebner, Johann"]
[Result "0-1"]
[ECO "E18"]
[WhiteElo "2164"]
[BlackElo "1907"]
[Annotator "ChessBase"]
[PlyCount "76"]
[EventDate "2022.07.09"]
[EventType "swiss"]
[EventCountry "AUT"]
[SourceTitle "playchess.com"]
[Source "ChessBase"]
[SourceQuality "1"]
[TimeControl "40/5400+30:1800+30"]

1. d4 {[%emt 0:00:03]} e6 {[%emt 0:10:11]} 2. Nf3 {[%emt 0:00:20]} Nf6 {[%emt 0:00:21]} 3. c4 {[%emt 0:00:34]} b6 {[%emt 0:00:19]} 4. g3 {[%emt 0:01:41]} Bb7 {[%emt 0:00:07]} 5. Bg2 {[%emt 0:00:09]} Be7 {[%emt 0:00:48]} 6. O-O {[%emt 0:00:26]} O-O {[%emt 0:00:06]} 7. Nc3 {[%emt 0:01:04]} Na6 {[%emt 0:00:09]} 8. Qa4 {[%emt 0:01:56]} Qc8 {[%emt 0:02:12]} 9. a3 {[%emt 0:05:33]} c5 {[%emt 0:04:04]} 10. e3 {[%emt 0:26:43]} d5 {[%emt 0:10:02]} 11. cxd5 {[%emt 0:06:05]} Nxd5 {[%emt 0:01:00]} 12. Nxd5 {[%emt 0:02:07]} Bxd5 {[%emt 0:00:31]} 13. Bd2 {[%emt 0:09:49]} Qb7 {[%emt 0:04:55]} 14. Ne1 {[%emt 0:00:23]} Bxg2 {[%emt 0:00:12]} 15. Nxg2 {[%emt 0:00:06]} cxd4 {[%emt 0:01:43]} 16. exd4 {[%emt 0:00:22]} Bf6 {[%emt 0:07:32]} 17. Bc3 {[%emt 0:00:44]} Rfd8 {[%emt 0:01:55]} 18. Rad1 {[%emt 0:01:46]} Nc7 {[%emt 0:00:35]} 19. Ne3 {[%emt 0:00:33]} h5 {[%emt 0:07:19]} 20. h4 {[%emt 0:13:36]} Nd5 {[%emt 0:02:35]} 21. Rd3 {[%emt 0:01:25]} Rd7 {[%emt 0:06:26]} 22. Qd1 {[%emt 0:06:16]} g6 {[%emt 0:02:06]} 23. Kh2 {[%emt 0:00:48]} Kg7 {[%emt 0:04:07]} 24. Qf3 {[%emt 0:03:23]} Rad8 {[%emt 0:04:31]} 25. Kh3 {[%emt 0:05:41]} Qc7 {[%emt 0:12:54]} 26. Rc1 {[%emt 0:03:26]} Rc8 {[%emt 0:04:43]} 27. Bd2 {[%emt 0:01:32]} Qd8 {[%emt 0:00:50]} 28. Rxc8 {[%emt 0:03:55]} Qxc8 {[%emt 0:00:02]} 29. Ng2 {[%emt 0:01:25]} e5 {[%emt 0:02:31]} 30. dxe5 {[%emt 0:00:39]} Nf4+ {[%emt 0:02:35]} 31. Kh2 {[%emt 0:00:36]} Nxd3 {[%emt 0:01:20]} 32. Qxf6+ {[%emt 0:01:19]} Kh7 {[%emt 0:01:09]} 33. Bc3 {[%emt 0:01:03]} Qe8 {[%emt 0:01:02]} 34. Ne3 {[%emt 0:01:25]} Qe6 {[%emt 0:00:27]} 35. Qg5 {[%emt 0:00:30]} Nxf2 {[%emt 0:00:33]} 36. Qf4 {[%emt 0:00:29]} Qh3+ {[%emt 0:03:47]} 37. Kg1 {[%emt 0:00:02]} Ng4 {[%emt 0:00:29]} 38. Ng2 {[%emt 0:00:59]} Qh2+ {[%emt 0:00:46]} 0-1